fUSD/lending_fUSD_20250629
["ID","MTS","AMOUNT","RATE_DAILY","PERIOD"]
[368405615,1751163046129,-500.0,0.00030105,2]
[368405617,1751163046139,-500.0,0.00030105,2]
[368405619,1751163046147,-500.0,0.00030105,2]
[368405621,1751163046157,-500.0,0.00030105,2]
[368405623,1751163046167,-500.0,0.00030105,2]
[368405625,1751163046176,-500.0,0.00030105,2]
[368405627,1751163046185,-500.0,0.00030105,2]
[368405629,1751163046194,-500.0,0.00030105,2]
[368405631,1751163046202,-500.0,0.00030105,2]
[368405633,1751163046211,-500.0,0.00030105,2]
[368405635,1751163046221,-500.0,0.00030105,2]
[368405637,1751163046230,-500.0,0.00030105,2]
[368405639,1751163046240,-500.0,0.00030105,2]
[368405641,1751163046250,-500.0,0.00030105,2]
[368405643,1751163046259,-500.0,0.00030105,2]
[368405645,1751163046268,-500.0,0.00030105,2]
[368405647,1751163046278,-500.0,0.00030105,2]
[368405648,1751163046288,-500.0,0.00030105,2]
[368405650,1751163046297,-500.0,0.00030105,2]
[368405652,1751163046306,-500.0,0.00030105,2]
[368405654,1751163046315,-500.0,0.00030105,2]
[368405656,1751163046324,-500.0,0.00030105,2]
[368405658,1751163046333,-500.0,0.00030105,2]
[368405660,1751163046343,-500.0,0.00030105,2]
[368405662,1751163046352,-500.0,0.00030105,2]
[368405664,1751163046360,-500.0,0.00030105,2]
[368405666,1751163046369,-500.0,0.00030105,2]
[368405668,1751163046378,-500.0,0.00030105,2]
[368405670,1751163046387,-500.0,0.00030105,2]
[368405672,1751163046396,-500.0,0.00030105,2]
[368405674,1751163046406,-500.0,0.00030105,2]
[368405676,1751163046414,-500.0,0.00030105,2]
[368405678,1751163046423,-500.0,0.00030105,2]
[368405680,1751163046432,-500.0,0.00030105,2]
[368405682,1751163046441,-500.0,0.00030105,2]
[368405684,1751163046450,-500.0,0.00030105,2]
[368405686,1751163046461,-500.0,0.00030105,2]
[368405688,1751163046470,-500.0,0.00030105,2]
[368405690,1751163046480,-500.0,0.00030105,2]
[368405692,1751163046489,-523.0,0.00030105,2]
[368405694,1751163046499,-500.0,0.00030105,2]
[368405696,1751163046508,-500.0,0.00030105,2]
[368405698,1751163046517,-946.0,0.00030105,2]
[368405700,1751163046527,-150.0,0.00030105,2]
[368405702,1751163046538,-37946.055823,0.00030105,2]
[368405704,1751163046548,-2805.05918466,0.00030106,2]
[368405706,1751163046558,-162.0,0.0003011,2]
[368405708,1751163046567,-294.7595415,0.0003011,15]
[368405710,1751163046577,-935.01972822,0.00030111,2]
[368405712,1751163046587,-300.0,0.00030112,2]
[368405715,1751163046597,-151.0,0.00030114,7]
[368405716,1751163046606,-156.362494,0.00030114,7]
[368405718,1751163046617,-179.065966,0.00030114,7]
[368405720,1751163046626,-179.065966,0.00030114,7]
[368405722,1751163046638,-382.1,0.00030114,2]
[368405725,1751163046647,-151.509886,0.00030115,2]
[368405728,1751163046657,-199.666365,0.00030115,7]
[368405731,1751163046666,-151.0,0.00030115,7]
[368405733,1751163046677,-179.065966,0.00030115,7]
[368405735,1751163046686,-179.065966,0.00030115,7]
[368405737,1751163046695,-2628.1309466,0.00030115,2]
[368405739,1751163046705,-2000.1639015,0.00030115,2]
[368405741,1751163046714,-4109.3527028,0.00030115,2]
[368405743,1751163046723,-21911.4291803,0.00030115,2]
[368405745,1751163046732,-4656.8933441,0.00030115,2]
[368405747,1751163046742,-61616.8158905,0.00030115,2]
[368405749,1751163046752,-14178.608329,0.00030115,2]
[368405751,1751163046762,-627.2922936,0.00030115,2]
[368405753,1751163046771,-330.12179027,0.00030116,2]
[368405755,1751163046780,-12155.2564669,0.00030116,2]
[368405757,1751163046791,-152.44,0.00030116,2]
[368405759,1751163046799,-151.0,0.00030116,7]
[368405760,1751163046808,-179.065966,0.00030116,7]
[368405762,1751163046818,-179.065966,0.00030116,7]
[368405764,1751163046828,-439.2,0.00030117,2]
[368405766,1751163046837,-500.0,0.00030124,2]
[368405768,1751163046847,-150.0,0.00030124,2]
[368405770,1751163046856,-150.0,0.00030124,2]
[368405772,1751163046866,-150.0,0.00030124,2]
[368405774,1751163046875,-150.0,0.00030124,2]
[368405776,1751163046884,-500.0,0.00030124,2]
[368405778,1751163046893,-150.0,0.00030124,2]
[368405780,1751163046902,-150.0,0.00030124,2]
[368405782,1751163046911,-150.0,0.00030124,2]
[368405784,1751163046920,-500.0,0.00030124,2]
[368405786,1751163046929,-150.0,0.00030124,2]
[368405788,1751163046938,-231.40360844,0.00030124,2]
[368405790,1751163046947,-300.0,0.00030125,10]
[368405792,1751163046957,-300.0,0.00030125,10]
[368405794,1751163046967,-323803.48790615,0.00030126,2]
[368405795,1751163046976,-1954.79533858,0.00030126,2]
[368405797,1751163046986,-2805.05918466,0.00030126,2]
[368405799,1751163046995,-183.74893717,0.00030126,2]
[368405800,1751163047005,-152.697307,0.00030126,7]
[368405802,1751163047014,-179.065966,0.00030126,7]
[368405804,1751163047024,-179.065966,0.00030126,7]
[368405806,1751163047032,-1954.04665544,0.00030128,2]
[368405807,1751163047041,-179.065966,0.00030134,7]
[368405809,1751163047054,-179.065966,0.00030134,7]
[368405811,1751163047064,-666.0,0.00030135,10]
[368405813,1751163047074,-669.51884225,0.00030135,10]
[368405814,1751163047083,-300.0,0.00030135,10]
[368405816,1751163047092,-300.0,0.00030135,10]
[368405818,1751163047102,-863.0,0.00030136,5]
[368405819,1751163047111,-3853.462613,0.00030136,9]
[368405821,1751163047121,-438.597885,0.00030136,9]
[368405823,1751163047132,-151.710788,0.00030136,9]
[368405825,1751163047141,-162.244221,0.00030136,9]
[368405826,1751163047151,-209.331738,0.00030136,9]
[368405828,1751163047160,-189.757792,0.00030136,9]
[368405830,1751163047170,-490.0,0.00030136,9]
[368405832,1751163047180,-490.0,0.00030136,9]
[368405834,1751163047189,-490.0,0.00030136,9]
[368405835,1751163047198,-1207.81,0.00030136,9]
[368405837,1751163047207,-846.48,0.00030136,9]
[368405839,1751163047217,-490.0,0.00030136,9]
[368405841,1751163047226,-490.0,0.00030136,9]
[368405842,1751163047235,-738.33,0.00030136,7]
[368405844,1751163047245,-490.0,0.00030136,9]
[368405846,1751163047254,-490.0,0.00030136,9]
[368405848,1751163047262,-490.0,0.00030136,9]
[368405849,1751163047272,-362.87808987,0.00030136,9]
[368405851,1751163047281,-490.0,0.00030136,9]
[368405853,1751163047290,-1329.28,0.00030136,9]
[368405855,1751163047299,-650.81,0.00030136,9]
[368405857,1751163047308,-490.0,0.00030136,9]
[368405859,1751163047317,-490.0,0.00030136,9]
[368405860,1751163047326,-490.0,0.00030136,9]
[368405862,1751163047335,-490.0,0.00030136,9]
[368405864,1751163047343,-490.0,0.00030136,9]
[368405866,1751163047353,-490.0,0.00030136,9]
[368405867,1751163047363,-490.0,0.00030136,9]
[368405869,1751163047372,-490.0,0.00030136,9]
[368405871,1751163047381,-490.0,0.00030136,9]
[368405873,1751163047390,-490.0,0.00030136,9]
[368405874,1751163047399,-490.0,0.00030136,9]
[368405876,1751163047408,-490.0,0.00030136,9]
[368405878,1751163047417,-490.0,0.00030136,9]
[368405879,1751163047425,-490.0,0.00030136,9]
[368405881,1751163047434,-490.0,0.00030136,9]
[368405883,1751163047443,-490.0,0.00030136,9]
[368405885,1751163047452,-490.0,0.00030136,9]
[368405887,1751163047461,-754.05,0.00030136,9]
[368405889,1751163047470,-334.21832714,0.00030136,9]
[368405891,1751163047479,-490.0,0.00030136,9]
[368405892,1751163047488,-490.0,0.00030136,9]
[368405894,1751163047497,-490.0,0.00030136,9]
[368405896,1751163047506,-490.0,0.00030136,9]
[368405897,1751163047515,-490.0,0.00030136,9]
[368405899,1751163047524,-490.0,0.00030136,9]
[368405901,1751163047533,-490.0,0.00030136,9]
[368405903,1751163047542,-490.0,0.00030136,9]
[368405905,1751163047551,-490.0,0.00030136,9]
[368405907,1751163047560,-862.93,0.00030136,9]
[368405908,1751163047570,-490.0,0.00030136,9]
[368405910,1751163047579,-505.49252275,0.00030136,9]
[368405912,1751163047589,-490.0,0.00030136,9]
[368405914,1751163047598,-490.0,0.00030136,9]
[368405916,1751163047607,-490.0,0.00030136,9]
[368405918,1751163047616,-490.0,0.00030136,9]
[368405920,1751163047625,-490.0,0.00030136,9]
[368405921,1751163047635,-490.0,0.00030136,9]
[368405923,1751163047644,-490.0,0.00030136,9]
[368405925,1751163047653,-490.0,0.00030136,9]
[368405927,1751163047665,-304.18539539,0.00030136,9]
[368405929,1751163047678,-464.06871941,0.00030136,9]
[368405931,1751163047687,-490.0,0.00030136,9]
[368405933,1751163047696,-490.0,0.00030136,9]
[368405934,1751163047705,-490.0,0.00030136,9]
[368405936,1751163047715,-490.0,0.00030136,9]
[368405938,1751163047729,-490.0,0.00030136,9]
[368405940,1751163047738,-281.6634186,0.00030136,9]
[368405942,1751163047747,-490.0,0.00030136,9]
[368405943,1751163047757,-490.0,0.00030136,9]
[368405945,1751163047766,-490.0,0.00030136,9]
[368405947,1751163047775,-490.0,0.00030136,9]
[368405949,1751163047786,-490.0,0.00030136,9]
[368405950,1751163047795,-491.60978216,0.00030136,9]
[368405952,1751163047805,-490.0,0.00030136,9]
[368405954,1751163047814,-490.0,0.00030136,9]
[368405956,1751163047823,-490.0,0.00030136,9]
[368405957,1751163047832,-166.443022,0.00030136,9]
[368405959,1751163047841,-490.0,0.00030136,9]
[368405961,1751163047850,-490.0,0.00030136,9]
[368405963,1751163047859,-633.86,0.00030136,9]
[368405965,1751163047869,-490.67086366,0.00030136,9]
[368405967,1751163047878,-490.45,0.00030136,9]
[368405968,1751163047888,-490.45,0.00030136,9]
[368405970,1751163047897,-490.0,0.00030136,9]
[368405972,1751163047907,-490.0,0.00030136,9]
[368405974,1751163047916,-490.0,0.00030136,9]
[368405975,1751163047925,-490.0,0.00030136,9]
[368405977,1751163047934,-490.0,0.00030136,9]
[368405978,1751163047943,-518.53510085,0.00030136,9]
[368405980,1751163047952,-490.0,0.00030136,9]
[368405981,1751163047962,-537.04919578,0.00030136,9]
[368405983,1751163047971,-273.12359868,0.00030136,9]
[368405985,1751163047980,-490.0,0.00030136,9]
[368405986,1751163047989,-490.0,0.00030136,9]
[368405988,1751163047998,-490.0,0.00030136,9]
[368405990,1751163048007,-490.0,0.00030136,9]
[368405991,1751163048015,-490.0,0.00030136,9]
[368405993,1751163048024,-510.92,0.00030136,9]
[368405995,1751163048033,-490.0,0.00030136,9]
[368405996,1751163048042,-490.0,0.00030136,9]
[368405998,1751163048053,-490.0,0.00030136,9]
[368406000,1751163048062,-615.26,0.00030136,9]
[368406002,1751163048072,-490.0,0.00030136,9]
[368406003,1751163048081,-403.67868343,0.00030136,9]
[368406005,1751163048090,-490.0,0.00030136,2]
[368406007,1751163048100,-490.0,0.00030136,9]
[368406008,1751163048109,-433.17072912,0.00030136,9]
[368406010,1751163048118,-490.0,0.00030136,9]
[368406012,1751163048128,-490.0,0.00030136,9]
[368406014,1751163048138,-490.0,0.00030136,9]
[368406015,1751163048148,-490.0,0.00030136,9]
[368406017,1751163048160,-1297.46,0.00030136,9]
[368406019,1751163048169,-490.0,0.00030136,9]
[368406021,1751163048179,-490.0,0.00030136,9]
[368406022,1751163048188,-490.0,0.00030136,9]
[368406024,1751163048198,-501.3,0.00030136,9]
[368406025,1751163048207,-490.0,0.00030136,9]
[368406027,1751163048218,-490.0,0.00030136,9]
[368406029,1751163048228,-1389.28,0.00030136,9]
[368406030,1751163048237,-490.0,0.00030136,9]
[368406032,1751163048246,-490.0,0.00030136,9]
[368406034,1751163048255,-494.20897835,0.00030136,9]
[368406036,1751163048265,-490.0,0.00030136,9]
[368406037,1751163048274,-490.0,0.00030136,9]
[368406039,1751163048283,-490.0,0.00030136,9]
[368406041,1751163048292,-490.0,0.00030136,9]
[368406043,1751163048302,-490.0,0.00030136,9]
[368406044,1751163048311,-490.0,0.00030136,9]
[368406046,1751163048320,-490.0,0.00030136,9]
[368406048,1751163048329,-490.0,0.00030136,9]
[368406050,1751163048338,-490.0,0.00030136,9]
[368406052,1751163048348,-490.0,0.00030136,9]
[368406053,1751163048357,-2485.284708,0.00030136,9]
[368406055,1751163048366,-490.0,0.00030136,9]
[368406057,1751163048375,-490.0,0.00030136,9]
[368406059,1751163048384,-490.0,0.00030136,9]
[368406061,1751163048393,-490.0,0.00030136,9]
[368406062,1751163048402,-490.0,0.00030136,9]
[368406064,1751163048412,-490.0,0.00030136,9]
[368406066,1751163048421,-772.14,0.00030136,9]
[368406068,1751163048430,-490.0,0.00030136,9]
[368406069,1751163048439,-490.0,0.00030136,9]
[368406071,1751163048448,-348.99848671,0.00030136,9]
[368406073,1751163048458,-490.0,0.00030136,5]
[368406075,1751163048467,-490.0,0.00030136,9]
[368406077,1751163048476,-490.0,0.00030136,9]
[368406079,1751163048486,-908.76,0.00030136,9]
[368406080,1751163048495,-490.0,0.00030136,9]
[368406082,1751163048504,-490.0,0.00030136,9]
[368406084,1751163048513,-525.47522995,0.00030136,9]
[368406086,1751163048522,-490.0,0.00030136,9]
[368406088,1751163048531,-490.0,0.00030136,9]
[368406089,1751163048540,-490.0,0.00030136,9]
[368406091,1751163048550,-528.33832199,0.00030136,9]
[368406093,1751163048559,-490.0,0.00030136,9]
[368406095,1751163048569,-541.54,0.00030136,9]
[368406097,1751163048579,-490.0,0.00030136,9]
[368406099,1751163048589,-490.0,0.00030136,9]
[368406100,1751163048598,-558.83,0.00030136,9]
[368406102,1751163048610,-510.43089279,0.00030136,9]
[368406104,1751163048619,-490.0,0.00030136,9]
[368406106,1751163048628,-865.66,0.00030136,9]
[368406108,1751163048638,-490.0,0.00030136,9]
[368406110,1751163048647,-160.0,0.00030136,2]
[368406111,1751163048656,-1085.81,0.00030136,9]
[368406113,1751163048665,-490.0,0.00030136,9]
[368406115,1751163048675,-612.29,0.00030136,9]
[368406117,1751163048684,-490.0,0.00030136,9]
[368406119,1751163048694,-490.0,0.00030136,9]
[368406121,1751163048704,-490.0,0.00030136,9]
[368406123,1751163048713,-928.75,0.00030136,9]
[368406124,1751163048723,-490.0,0.00030136,9]
[368406126,1751163048733,-490.0,0.00030136,9]
[368406128,1751163048742,-490.0,0.00030136,9]
[368406130,1751163048751,-2007.37,0.00030136,9]
[368406131,1751163048761,-490.0,0.00030136,9]
[368406133,1751163048770,-506.92,0.00030136,9]
[368406134,1751163048779,-490.0,0.00030136,9]
[368406135,1751163048788,-647.94,0.00030136,9]
[368406136,1751163048797,-490.0,0.00030136,9]
[368406137,1751163048807,-720.72,0.00030136,9]
[368406138,1751163048816,-490.0,0.00030136,9]
[368406139,1751163048825,-547.56,0.00030136,9]
[368406140,1751163048835,-490.0,0.00030136,9]
[368406141,1751163048844,-490.0,0.00030136,9]
[368406142,1751163048853,-408.37628646,0.00030136,9]
[368406143,1751163048862,-490.0,0.00030136,9]
[368406144,1751163048871,-490.0,0.00030136,9]
[368406145,1751163048881,-490.0,0.00030136,9]
[368406146,1751163048890,-490.0,0.00030136,9]
[368406148,1751163048899,-651.59,0.00030136,9]
[368406149,1751163048909,-699.37,0.00030136,9]
[368406151,1751163048918,-490.0,0.00030136,9]
[368406153,1751163048927,-490.0,0.00030136,9]
[368406154,1751163048937,-490.0,0.00030136,9]
[368406155,1751163048947,-627.73,0.00030136,9]
[368406156,1751163048956,-490.0,0.00030136,9]
[368406157,1751163048966,-490.0,0.00030136,9]
[368406158,1751163048975,-479.96592937,0.00030136,9]
[368406159,1751163048984,-671.85,0.00030136,9]
[368406160,1751163048994,-464.24056606,0.00030136,9]
[368406161,1751163049004,-177.06722915,0.00030136,9]
[368406162,1751163049013,-490.0,0.00030136,9]
[368406163,1751163049022,-746.27,0.00030136,9]
[368406164,1751163049031,-893.15,0.00030136,9]
[368406165,1751163049040,-490.0,0.00030136,9]
[368406166,1751163049050,-1161.96,0.00030136,9]
[368406167,1751163049063,-490.0,0.00030136,9]
[368406168,1751163049072,-490.0,0.00030136,9]
[368406169,1751163049082,-490.0,0.00030136,9]
[368406170,1751163049091,-490.0,0.00030136,9]
[368406171,1751163049101,-490.0,0.00030136,9]
[368406172,1751163049110,-490.0,0.00030136,9]
[368406173,1751163049119,-490.0,0.00030136,9]
[368406174,1751163049129,-490.0,0.00030136,9]
[368406175,1751163049141,-972.75,0.00030136,9]
[368406176,1751163049151,-490.0,0.00030136,9]
[368406177,1751163049160,-490.0,0.00030136,9]
[368406178,1751163049170,-490.0,0.00030136,9]
[368406179,1751163049179,-490.0,0.00030136,9]
[368406180,1751163049188,-526.87,0.00030136,9]
[368406181,1751163049198,-490.0,0.00030136,9]
[368406182,1751163049207,-490.0,0.00030136,9]
[368406183,1751163049216,-599.94,0.00030136,9]
[368406184,1751163049225,-490.0,0.00030136,9]
[368406185,1751163049234,-490.0,0.00030136,9]
[368406186,1751163049244,-490.0,0.00030136,9]
[368406187,1751163049253,-490.0,0.00030136,9]
[368406188,1751163049262,-490.0,0.00030136,9]
[368406189,1751163049271,-490.0,0.00030136,9]
[368406190,1751163049280,-490.0,0.00030136,9]
[368406191,1751163049290,-490.0,0.00030136,9]
[368406192,1751163049300,-490.0,0.00030136,9]
[368406193,1751163049309,-490.0,0.00030136,9]
[368406194,1751163049318,-490.0,0.00030136,9]
[368406195,1751163049327,-861.03,0.00030136,9]
[368406197,1751163049336,-490.0,0.00030136,9]
[368406199,1751163049345,-490.0,0.00030136,9]
[368406201,1751163049354,-490.0,0.00030136,9]
[368406203,1751163049363,-490.0,0.00030136,9]
[368406205,1751163049371,-490.0,0.00030136,9]
[368406206,1751163049380,-490.0,0.00030136,9]
[368406207,1751163049389,-490.0,0.00030136,9]
[368406208,1751163049397,-1022.43,0.00030136,9]
[368406209,1751163049406,-490.0,0.00030136,9]
[368406210,1751163049415,-490.0,0.00030136,9]
[368406211,1751163049423,-490.0,0.00030136,9]
[368406212,1751163049432,-490.0,0.00030136,9]
[368406213,1751163049441,-490.0,0.00030136,9]
[368406214,1751163049450,-490.0,0.00030136,9]
[368406215,1751163049458,-490.0,0.00030136,9]
[368406216,1751163049467,-490.0,0.00030136,9]
[368406217,1751163049475,-490.0,0.00030136,9]
[368406218,1751163049484,-490.0,0.00030136,9]
[368406219,1751163049493,-493.09736379,0.00030136,9]
[368406220,1751163049502,-1783.89,0.00030136,9]
[368406221,1751163049511,-519.44,0.00030136,9]
[368406222,1751163049520,-809.53,0.00030136,9]
[368406223,1751163049529,-490.0,0.00030136,9]
[368406224,1751163049538,-490.0,0.00030136,9]
[368406225,1751163049546,-490.0,0.00030136,9]
[368406226,1751163049555,-1610.23,0.00030136,9]
[368406227,1751163049565,-547.23,0.00030136,9]
[368406228,1751163049573,-490.0,0.00030136,9]
[368406229,1751163049582,-961.76,0.00030136,9]
[368406230,1751163049591,-490.0,0.00030136,9]
[368406231,1751163049601,-490.0,0.00030136,9]
[368406232,1751163049610,-546.16,0.00030136,9]
[368406233,1751163049619,-490.0,0.00030136,9]
[368406234,1751163049628,-490.0,0.00030136,9]
[368406235,1751163049637,-490.0,0.00030136,9]
[368406236,1751163049646,-490.0,0.00030136,9]
[368406237,1751163049656,-490.0,0.00030136,9]
[368406238,1751163049665,-490.0,0.00030136,9]
[368406239,1751163049674,-779.27,0.00030136,9]
[368406240,1751163049683,-179.065966,0.00030136,7]
[368406241,1751163049693,-179.065966,0.00030136,7]
[368406242,1751163049702,-490.0,0.00030136,9]
[368406244,1751163049711,-179.065966,0.00030136,7]
[368406245,1751163049721,-179.065966,0.00030136,7]
[368406247,1751163049730,-471.77532626,0.00030136,9]
[368406248,1751163049739,-537.93,0.00030136,9]
[368406250,1751163049749,-866.58,0.00030136,9]
[368406251,1751163049841,-490.0,0.00030136,9]
[368406252,1751163049888,-179.065966,0.00030136,7]
[368406253,1751163049898,-490.0,0.00030136,9]
[368406254,1751163049907,-490.0,0.00030136,9]
[368406255,1751163049916,-179.065966,0.00030136,7]
[368406256,1751163049925,-179.065966,0.00030136,7]
[368406257,1751163049934,-490.0,0.00030136,9]
[368406258,1751163049944,-490.0,0.00030136,9]
[368406259,1751163049955,-179.06597,0.00030136,7]
[368406260,1751163049966,-490.0,0.00030136,9]
[368406261,1751163049975,-490.0,0.00030136,9]
[368406263,1751163049985,-718.03,0.00030136,9]
[368406264,1751163049994,-490.0,0.00030136,9]
[368406265,1751163050004,-490.0,0.00030136,9]
[368406266,1751163050014,-490.0,0.00030136,9]
[368406267,1751163050023,-490.0,0.00030136,9]
[368406268,1751163050033,-692.36,0.00030136,9]
[368406269,1751163050042,-490.0,0.00030136,9]
[368406270,1751163050054,-490.0,0.00030136,9]
[368406271,1751163050064,-490.0,0.00030136,9]
[368406272,1751163050073,-490.0,0.00030136,9]
[368406273,1751163050083,-1681.32,0.00030136,9]
[368406274,1751163050092,-490.0,0.00030136,9]
[368406275,1751163050102,-490.0,0.00030136,9]
[368406276,1751163050111,-490.0,0.00030136,9]
[368406277,1751163050121,-1392.48,0.00030136,9]
[368406278,1751163050131,-490.0,0.00030136,9]
[368406279,1751163050140,-1104.97,0.00030136,9]
[368406280,1751163050150,-542.52,0.00030136,9]
[368406281,1751163050159,-1177.24,0.00030136,9]
[368406282,1751163050169,-490.0,0.00030136,9]
[368406283,1751163050178,-1212.18,0.00030136,9]
[368406284,1751163050188,-836.43,0.00030136,9]
[368406285,1751163050197,-490.0,0.00030136,9]
[368406286,1751163050206,-1206.44,0.00030136,9]
[368406287,1751163050216,-490.0,0.00030136,9]
[368406288,1751163050225,-432.09176713,0.00030136,9]
[368406290,1751163050234,-490.0,0.00030136,9]
[368406292,1751163050243,-490.0,0.00030136,9]
[368406294,1751163050252,-490.0,0.00030136,9]
[368406296,1751163050261,-490.0,0.00030136,9]
[368406297,1751163050270,-490.0,0.00030136,9]
[368406299,1751163050279,-518.16,0.00030136,9]
[368406301,1751163050289,-490.0,0.00030136,9]
[368406303,1751163050298,-490.0,0.00030136,9]
[368406305,1751163050307,-490.0,0.00030136,9]
[368406307,1751163050317,-490.0,0.00030136,9]
[368406309,1751163050326,-490.0,0.00030136,9]
[368406310,1751163050335,-490.0,0.00030136,9]
[368406312,1751163050345,-1555.76,0.00030136,9]
[368406313,1751163050355,-1555.76,0.00030136,9]
[368406314,1751163050366,-1555.76,0.00030136,9]
[368406315,1751163050375,-1555.76,0.00030136,9]
[368406316,1751163050385,-490.0,0.00030136,9]
[368406317,1751163050394,-1555.76,0.00030136,9]
[368406318,1751163050403,-490.0,0.00030136,9]
[368406319,1751163050413,-1000.0,0.00030136,9]
[368406320,1751163050422,-1555.76,0.00030136,9]
[368406321,1751163050432,-1555.76,0.00030136,9]
[368406322,1751163050441,-500.0,0.00030136,2]
[368406323,1751163050451,-500.0,0.00030136,2]
[368406324,1751163050460,-490.0,0.00030136,9]
[368406325,1751163050469,-1555.76,0.00030136,9]
[368406326,1751163050479,-500.0,0.00030136,2]
[368406327,1751163050488,-500.0,0.00030136,2]
[368406328,1751163050498,-490.0,0.00030136,9]
[368406329,1751163050507,-500.0,0.00030136,2]
[368406330,1751163050517,-1555.76,0.00030136,9]
[368406331,1751163050527,-500.0,0.00030136,2]
[368406332,1751163050536,-490.0,0.00030136,9]
[368406333,1751163050545,-500.0,0.00030136,2]
[368406334,1751163050555,-1555.76,0.00030136,9]
[368406335,1751163050565,-500.0,0.00030136,2]
[368406336,1751163050574,-1555.76,0.00030136,9]
[368406337,1751163050584,-500.0,0.00030136,2]
[368406338,1751163050593,-1555.76,0.00030136,9]
[368406339,1751163050603,-490.0,0.00030136,9]
[368406340,1751163050612,-500.0,0.00030136,2]
[368406341,1751163050622,-500.0,0.00030136,2]
[368406342,1751163050631,-526.09251489,0.00030136,2]
[368406343,1751163050642,-490.0,0.00030136,9]
[368406344,1751163050652,-490.0,0.00030136,9]
[368406345,1751163050661,-490.0,0.00030136,9]
[368406346,1751163050671,-490.0,0.00030136,9]
[368406347,1751163050680,-490.0,0.00030136,9]
[368406348,1751163050690,-369.00373062,0.00030136,9]
[368406349,1751163050699,-490.0,0.00030136,9]
[368406350,1751163050709,-490.0,0.00030136,9]
[368406351,1751163050718,-1052.89,0.00030136,9]
[368406352,1751163050727,-1004.52,0.00030136,9]
[368406353,1751163050736,-490.0,0.00030136,9]
[368406354,1751163050746,-490.0,0.00030136,9]
[368406355,1751163050755,-490.0,0.00030136,9]
[368406356,1751163050765,-490.0,0.00030136,9]
[368406357,1751163050775,-490.0,0.00030136,9]
[368406358,1751163050785,-490.0,0.00030136,9]
[368406359,1751163050796,-490.0,0.00030136,9]
[368406360,1751163050806,-998.71,0.00030136,9]
[368406361,1751163050816,-490.0,0.00030136,9]
[368406362,1751163050825,-490.0,0.00030136,9]
[368406363,1751163050834,-490.0,0.00030136,9]
[368406364,1751163050845,-490.0,0.00030136,9]
[368406365,1751163050854,-490.0,0.00030136,9]
[368406366,1751163050864,-490.0,0.00030136,9]
[368406367,1751163050873,-490.0,0.00030136,9]
[368406368,1751163050883,-490.0,0.00030136,9]
[368406369,1751163050892,-490.0,0.00030136,9]
[368406370,1751163050902,-490.0,0.00030136,9]
[368406371,1751163050911,-490.0,0.00030136,9]
[368406372,1751163050920,-490.0,0.00030136,9]
[368406373,1751163050930,-490.0,0.00030136,9]
[368406374,1751163050939,-618.41,0.00030136,9]